fUSD/lending_fUSD_20250502
["ID","MTS","AMOUNT","RATE_DAILY","PERIOD"]
[359584365,1746151841217,-344.0117713,0.00027816,2]
[359584366,1746151841228,-603.63,0.00027835,2]
[359584367,1746151841238,-1379.86931378,0.00027853,2]
[359584368,1746151841247,-500.0,0.00027945,2]
[359584369,1746151841258,-150.0,0.00027945,2]
[359584370,1746151841268,-349.81631304,0.00027945,2]
[359584371,1746151841279,-507.11248807,0.00027945,2]
[359584372,1746151841289,-441.0,0.00027945,2]
[359584373,1746151841300,-156.17514182,0.00027945,2]
[359584374,1746151841310,-500.0,0.00027945,2]
[359584375,1746151841320,-150.0,0.00027945,2]
[359584376,1746151841329,-1000.0,0.00027945,2]
[359584377,1746151841339,-638.0798074,0.00027945,2]
[359584378,1746151841348,-437.0,0.00027945,2]
[359584379,1746151841358,-201.12892741,0.00027945,2]
[359584380,1746151841367,-500.0,0.00027945,2]
[359584381,1746151841376,-500.0,0.00027945,2]
[359584382,1746151841386,-1357.948,0.00027953,2]
[359584383,1746151841395,-318.405,0.00027953,2]
[359584384,1746151841404,-801.0,0.00027953,2]
[359584385,1746151841414,-1207.0,0.00027953,2]
[359584386,1746151841423,-1152.0,0.00027986,2]
[359584387,1746151841433,-257.91778498,0.00028167,2]
[359584388,1746151841442,-500.0,0.00028219,2]
[359584389,1746151841452,-227.99932382,0.00028219,2]
[359584390,1746151841461,-441.0,0.00028219,2]
[359584391,1746151841470,-500.0,0.00028219,2]
[359584392,1746151841479,-150.0,0.00028219,2]
[359584393,1746151841488,-1000.0,0.00028219,2]
[359584394,1746151841498,-437.0,0.00028219,2]
[359584395,1746151841508,-500.0,0.00028219,2]
[359584396,1746151841518,-500.0,0.00028219,2]
[359584397,1746151841528,-495.13601848,0.00028393,2]
[359584398,1746151841537,-380.78960975,0.00028393,2]
[359584399,1746151841547,-1000.0,0.00028424,2]
[359584400,1746151841556,-191.50076142,0.00028488,2]
[359584401,1746151841566,-500.0,0.00028493,2]
[359584402,1746151841575,-441.0,0.00028493,2]
[359584403,1746151841585,-500.0,0.00028493,2]
[359584404,1746151841594,-150.0,0.00028493,2]
[359584405,1746151841605,-1000.0,0.00028493,2]
[359584406,1746151841614,-437.0,0.00028493,2]
[359584407,1746151841623,-500.0,0.00028493,2]
[359584408,1746151841633,-500.0,0.00028493,2]
[359584409,1746151841643,-500.0,0.000285,2]
[359584410,1746151841652,-150.0,0.00028549,2]
[359584411,1746151841662,-150.0,0.00028564,2]
[359584412,1746151841671,-2444.34779217,0.00028576,2]
[359584413,1746151841681,-24247.13484551,0.00028576,2]
[359584414,1746151841690,-150.0,0.00028588,2]
[359584415,1746151841700,-150.0,0.0002866,2]
[359584416,1746151841709,-150.0,0.00028679,2]
[359584417,1746151841719,-938.4,0.00028698,2]
[359584418,1746151841728,-150.0,0.00028707,2]
[359584419,1746151841737,-150.0,0.0002873,2]
[359584420,1746151841747,-563.7879847,0.00028747,2]
[359584421,1746151841757,-78302.1228439,0.00028747,2]
[359584422,1746151841767,-160.37153565,0.00028761,2]
[359584423,1746151841776,-500.0,0.00028767,2]
[359584424,1746151841786,-441.0,0.00028767,2]
[359584425,1746151841795,-500.0,0.00028767,2]
[359584426,1746151841805,-197.90482044,0.00028767,2]
[359584427,1746151841814,-1000.0,0.00028767,2]
[359584428,1746151841824,-437.0,0.00028767,2]
[359584429,1746151841834,-500.0,0.00028767,2]
[359584430,1746151841844,-196.04805584,0.00028767,2]
[359584431,1746151841857,-268.05,0.00028767,2]
[359584432,1746151841866,-825.42,0.00028767,2]
[359584433,1746151841876,-1461.58150886,0.00029,2]
[359584434,1746151841885,-550.0,0.00029,2]
[359584435,1746151841894,-250.0,0.00029041,2]
[359584436,1746151841904,-441.0,0.00029041,2]
[359584437,1746151841913,-500.0,0.00029041,2]
[359584438,1746151841923,-1000.0,0.00029041,2]
[359584439,1746151841932,-437.0,0.00029041,2]
[359584440,1746151841942,-500.0,0.00029041,2]
[359584441,1746151841951,-441.0,0.00029315,2]
[359584442,1746151841960,-500.0,0.00029315,2]
[359584443,1746151841969,-1000.0,0.00029315,2]
[359584444,1746151841979,-437.0,0.00029315,2]
[359584445,1746151841988,-500.0,0.00029315,2]
[359584446,1746151841998,-575.772,0.00029353,2]
[359584447,1746151842009,-267.46074303,0.00029536,2]
[359584448,1746151842018,-441.0,0.00029589,2]
[359584449,1746151842028,-503.86806826,0.00029589,2]
[359584450,1746151842037,-1000.0,0.00029589,2]
[359584451,1746151842048,-437.0,0.00029589,2]
[359584452,1746151842058,-500.0,0.00029589,2]
[359584453,1746151842068,-151.54135065,0.00029819,2]
[359584454,1746151842077,-340.68,0.00029831,2]
[359584455,1746151842087,-400.99,0.00029831,2]
[359584456,1746151842096,-441.0,0.00029863,2]
[359584457,1746151842107,-1000.0,0.00029863,2]
[359584458,1746151842117,-437.0,0.00029863,2]
[359584459,1746151842126,-500.0,0.00029863,2]
[359584460,1746151842135,-1469.04,0.0003,2]
[359584461,1746151842144,-160.0,0.0003,2]
[359584462,1746151842154,-1893.36270342,0.0003,2]
[359584463,1746151842163,-1158.44044072,0.0003,10]
[359584464,1746151842172,-1246.67556792,0.0003,2]
[359584465,1746151842182,-159.0,0.0003,2]
[359584466,1746151842195,-10497.66,0.0003011,2]
[359584467,1746151842205,-268.05,0.00030136,2]
[359584468,1746151842215,-441.0,0.00030137,2]
[359584469,1746151842224,-1000.0,0.00030137,2]
[359584470,1746151842234,-437.0,0.00030137,2]
[359584471,1746151842244,-500.0,0.00030137,2]
[359584472,1746151842255,-825.42,0.00030137,2]
[359584473,1746151842264,-610.0,0.00030137,2]
[359584474,1746151842276,-150.0,0.00030137,2]
[359584475,1746151842286,-580.03287689,0.00030137,2]
[359584476,1746151842296,-2444.34779217,0.00030311,2]
[359584477,1746151842305,-24247.13484551,0.00030311,2]
[359584478,1746151842314,-441.0,0.00030411,2]
[359584479,1746151842323,-1000.0,0.00030411,2]
[359584480,1746151842332,-437.0,0.00030411,2]
[359584481,1746151842341,-181.20881037,0.00030411,2]
[359584482,1746151842351,-154.947287,0.00030411,7]
[359584483,1746151842361,-1613.0,0.00030477,2]
[359584484,1746151842370,-441.0,0.00030685,2]
[359584485,1746151842380,-1000.0,0.00030685,2]
[359584486,1746151842389,-437.0,0.00030685,2]
[359584487,1746151842399,-153.89396065,0.0003085,5]
[359584488,1746151842408,-500.17140258,0.0003085,5]
[359584489,1746151842418,-160.47710762,0.0003085,5]
[359584490,1746151842427,-500.0,0.0003085,5]
[359584491,1746151842437,-200.0,0.00030876,2]
[359584492,1746151842447,-277.35679052,0.00030905,2]
[359584493,1746151842456,-150.0,0.0003093,2]
[359584494,1746151842465,-200.0,0.00030942,2]
[359584495,1746151842475,-797.0,0.00030953,2]
[359584496,1746151842484,-333.156,0.00030953,2]
[359584497,1746151842493,-441.0,0.00030959,2]
[359584498,1746151842502,-1000.0,0.00030959,2]
[359584499,1746151842511,-437.0,0.00030959,2]
[359584500,1746151842521,-938.4,0.00030962,2]
[359584501,1746151842531,-171.308797,0.00031,7]
[359584502,1746151842540,-600.0,0.00031,2]
[359584503,1746151842549,-151.0,0.00031,7]
[359584504,1746151842559,-1000.0,0.00031008,2]
[359584505,1746151842568,-441.0,0.00031233,2]
[359584506,1746151842578,-1000.0,0.00031233,2]
[359584507,1746151842587,-437.0,0.00031233,2]
[359584508,1746151842596,-268.05,0.00031506,2]
[359584509,1746151842607,-441.0,0.00031507,2]
[359584510,1746151842616,-1000.0,0.00031507,2]
[359584511,1746151842625,-437.0,0.00031507,2]
[359584512,1746151842635,-825.42,0.00031507,2]
[359584513,1746151842645,-151.0,0.00031588,7]
[359584515,1746151842655,-150.0,0.00031723,2]
[359584516,1746151842664,-441.0,0.00031781,2]
[359584517,1746151842673,-1000.0,0.00031781,2]
[359584518,1746151842683,-437.0,0.00031781,2]
[359584519,1746151842691,-200.0,0.00031876,2]
[359584520,1746151842702,-3005.45970215,0.00032,2]
[359584521,1746151842716,-2444.34779217,0.00032046,2]
[359584522,1746151842725,-24247.13484551,0.00032046,2]
[359584523,1746151842734,-441.0,0.00032055,2]
[359584524,1746151842743,-1000.0,0.00032055,2]
[359584525,1746151842753,-437.0,0.00032055,2]
[359584526,1746151842763,-287.61899177,0.00032274,2]
[359584527,1746151842772,-441.0,0.00032329,2]
[359584528,1746151842781,-1000.0,0.00032329,2]
[359584529,1746151842791,-437.0,0.00032329,2]
[359584530,1746151842800,-500.68110356,0.00032329,5]
[359584532,1746151842809,-501.48069046,0.00032329,5]
[359584533,1746151842818,-500.8896261,0.00032329,5]
[359584534,1746151842828,-502.10657036,0.00032329,5]
[359584535,1746151842838,-502.14334775,0.00032329,5]
[359584536,1746151842847,-1000.0,0.00032329,5]
[359584537,1746151842857,-501.82986868,0.00032329,5]
[359584538,1746151842867,-537.89064215,0.00032329,5]
[359584539,1746151842876,-150.0,0.00032516,2]
[359584540,1746151842886,-441.0,0.00032602,2]
[359584541,1746151842896,-1000.0,0.00032602,2]
[359584542,1746151842907,-437.0,0.00032602,2]
[359584543,1746151842917,-300.0,0.00032644,2]
[359584544,1746151842927,-151.0,0.000328,7]
[359584545,1746151842937,-151.0,0.000328,7]
[359584546,1746151842947,-152.78678492,0.00032801,2]
[359584547,1746151842958,-150.0,0.00032876,2]
[359584548,1746151842968,-150.0,0.00032876,2]
[359584549,1746151842979,-200.0,0.00032876,2]
[359584550,1746151842989,-500.0,0.00032876,2]
[359584551,1746151842999,-200.0,0.00032876,2]
[359584552,1746151843010,-200.0,0.00032876,2]
[359584553,1746151843021,-203.934156,0.00032876,7]
[359584554,1746151843031,-203.934156,0.00032876,7]
[359584555,1746151843041,-1000.0,0.00032876,2]
[359584556,1746151843052,-1000.0,0.00032876,2]
[359584557,1746151843063,-1000.0,0.00032876,2]
[359584558,1746151843072,-1000.0,0.00032876,2]
[359584559,1746151843082,-1000.0,0.00032876,2]
[359584560,1746151843092,-1013.20539275,0.00032876,2]
[359584561,1746151843101,-268.05,0.00032876,2]
[359584562,1746151843113,-441.0,0.00032876,2]
[359584563,1746151843122,-1000.0,0.00032876,2]
[359584564,1746151843132,-437.0,0.00032876,2]
[359584565,1746151843141,-176.59,0.00032877,30]
[359584566,1746151843151,-825.42,0.00032877,2]
[359584567,1746151843161,-155.0,0.00032877,2]
[359584568,1746151843171,-725.92080834,0.00032877,2]
[359584569,1746151843180,-153.96019469,0.00032877,2]
[359584570,1746151843190,-266.57003137,0.00032877,2]
[359584575,1746151843401,-23819.6934215,0.00033,2]
[359584576,1746151843411,-151.0,0.00033,7]
[359584577,1746151843423,-151.0,0.00033,7]
[359584578,1746151843432,-650.0,0.00033,2]
[359584579,1746151843443,-290.354684,0.00033,7]
[359584580,1746151843453,-223.861338,0.00033,7]
[359584581,1746151843463,-223.861338,0.00033,7]
[359584582,1746151843473,-441.0,0.0003315,2]
[359584583,1746151843482,-1000.0,0.0003315,2]
[359584584,1746151843492,-437.0,0.0003315,2]
[359584585,1746151843501,-1000.0,0.00033165,2]
[359584586,1746151843511,-1759.0,0.0003319,2]
[359584587,1746151843521,-334.35124706,0.00033206,120]
[359584588,1746151843531,-938.4,0.00033226,2]
[359584589,1746151843541,-150.0,0.00033282,2]
[359584590,1746151843550,-150.0,0.00033309,2]
[359584591,1746151843560,-441.0,0.00033424,2]
[359584592,1746151843570,-1000.0,0.00033424,2]
[359584593,1746151843579,-437.0,0.00033424,2]
[359584594,1746151843590,-495.13601846,0.00033599,2]
[359584595,1746151843599,-380.78960975,0.00033599,2]
[359584596,1746151843609,-298.26089446,0.00033643,2]
[359584597,1746151843619,-900.0,0.00033644,3]
[359584598,1746151843628,-455.49578883,0.00033698,2]
[359584599,1746151843638,-1000.0,0.00033698,2]
[359584600,1746151843647,-438.72005308,0.00033698,2]
[359584601,1746151843656,-2444.34779217,0.00033781,2]
[359584602,1746151843666,-24247.13484551,0.00033781,2]
[359584603,1746151843676,-152.0,0.00033784,3]
[359584604,1746151843686,-579.3676117,0.00033825,4]
[359584605,1746151843697,-797.0,0.00033953,2]
[359584606,1746151843707,-1000.0,0.00033972,2]
[359584607,1746151843717,-1974.18985317,0.00034,2]
[359584608,1746151843727,-161.43,0.00034,2]
[359584609,1746151843737,-150.0,0.00034102,2]
[359584610,1746151843748,-150.0,0.00034239,2]
[359584611,1746151843758,-268.05,0.00034246,2]
[359584612,1746151843769,-1000.0,0.00034246,2]
[359584613,1746151843779,-150.0,0.00034404,2]
[359584614,1746151843789,-172.14355835,0.00034438,30]
[359584615,1746151843799,-275.61180722,0.0003452,2]
[359584616,1746151843809,-150.0,0.00034548,10]
[359584617,1746151843819,-152.0,0.00034576,4]
[359584618,1746151843829,-172.14355835,0.00034822,30]
[359584619,1746151843838,-150.0,0.00034895,2]
[359584620,1746151843848,-150.0,0.00034917,2]
[359584621,1746151843858,-200.0,0.00034924,2]
[359584622,1746151843867,-3900.0,0.00035,7]
[359584623,1746151843878,-200.0,0.00035,30]
[359584624,1746151843887,-258.12,0.00035,2]
[359584625,1746151843897,-1197.61856956,0.00035,2]
[359584626,1746151843906,-74304.40037849,0.00035,2]
[359584627,1746151843916,-700.0,0.00035,2]
[359584628,1746151843925,-897.31167815,0.00035,5]
[359584629,1746151843935,-309.29654756,0.00035012,2]
[359584630,1746151843944,-327.96,0.00035068,2]
[359584631,1746151843954,-2159.61,0.000351,2]
[359584632,1746151843964,-209.46822385,0.00035139,2]
[359584633,1746151843973,-150.0,0.00035187,2]
[359584634,1746151843983,-150.0,0.00035194,2]
[359584635,1746151843992,-2159.61,0.000352,2]
[359584636,1746151844001,-172.14355835,0.00035205,30]
[359584637,1746151844011,-2159.61,0.000353,2]
[359584638,1746151844021,-150.0,0.00035306,2]
[359584639,1746151844030,-152.0,0.00035367,5]
[359584640,1746151844040,-2159.61,0.000354,2]
[359584641,1746151844050,-2159.61,0.000354,2]
[359584642,1746151844060,-2110.0,0.00035438,2]
[359584643,1746151844069,-938.4,0.0003549,2]
[359584644,1746151844079,-2063.51,0.000355,7]
[359584645,1746151844089,-2444.34779217,0.00035516,2]
[359584646,1746151844099,-24247.13484551,0.00035516,2]
[359584647,1746151844111,-2244.4891416,0.00035568,2]
[359584648,1746151844120,-93250.6172628,0.00035568,2]
[359584649,1746151844131,-172.14355835,0.00035589,30]
[359584650,1746151844140,-527.3725192,0.00035592,2]
[359584651,1746151844151,-73106.9886625,0.00035592,2]
[359584652,1746151844161,-2106.878446,0.00035592,2]
[359584653,1746151844171,-87533.3776166,0.00035592,2]
[359584654,1746151844181,-5406.1755841,0.00035592,2]
[359584655,1746151844192,-322.9202462,0.00035592,2]
[359584656,1746151844205,-202.63664096,0.00035594,30]
[359584657,1746151844214,-159.0,0.000356,32]
[359584658,1746151844224,-311.93520587,0.00035615,10]
[359584659,1746151844235,-150.0,0.00035615,3]
[359584660,1746151844246,-150.0,0.00035615,3]
[359584661,1746151844258,-151.0,0.00035616,7]
[359584662,1746151844267,-151.0,0.00035616,7]
[359584663,1746151844279,-151.0,0.00035616,7]
[359584664,1746151844290,-151.0,0.00035616,7]
[359584665,1746151844300,-151.0,0.00035616,7]
[359584666,1746151844310,-206.207625,0.00035616,7]
[359584667,1746151844320,-450.0,0.00035616,11]
[359584668,1746151844329,-151.0,0.00035616,7]
[359584669,1746151844339,-151.0,0.00035616,7]
[359584670,1746151844349,-153.410582,0.00035616,7]
[359584671,1746151844362,-607.27,0.00035616,11]
[359584672,1746151844372,-211.753648,0.00035616,7]
[359584673,1746151844383,-152.187598,0.00035616,7]
[359584674,1746151844392,-151.0,0.00035616,7]
[359584675,1746151844402,-151.0,0.00035616,7]
[359584676,1746151844411,-151.0,0.00035616,7]
[359584677,1746151844420,-151.0,0.00035616,7]
[359584678,1746151844431,-151.0,0.00035616,7]
[359584679,1746151844441,-151.0,0.00035616,7]
[359584680,1746151844452,-151.0,0.00035616,7]
[359584681,1746151844461,-151.0,0.00035616,7]
[359584682,1746151844471,-159.273539,0.00035616,7]
[359584683,1746151844481,-151.0,0.00035616,7]
[359584684,1746151844492,-151.0,0.00035616,7]
[359584685,1746151844502,-151.0,0.00035616,7]
[359584686,1746151844511,-171.308797,0.00035616,7]
[359584687,1746151844520,-151.0,0.00035616,7]
[359584688,1746151844530,-151.0,0.00035616,7]
[359584689,1746151844539,-151.0,0.00035616,7]
[359584690,1746151844549,-151.0,0.00035616,7]
[359584691,1746151844558,-151.0,0.00035616,7]
[359584692,1746151844568,-151.0,0.00035616,7]
[359584693,1746151844577,-450.0,0.00035616,11]
[359584694,1746151844587,-201.034879,0.00035616,7]
[359584695,1746151844597,-450.0,0.00035616,3]
[359584696,1746151844607,-151.0,0.00035616,7]
[359584697,1746151844617,-203.934156,0.00035616,7]
[359584698,1746151844626,-151.0,0.00035616,7]
[359584699,1746151844637,-203.934156,0.00035616,7]
[359584700,1746151844646,-151.0,0.00035616,7]
[359584701,1746151844656,-283.90094239,0.00035616,11]
[359584702,1746151844666,-533.76899943,0.00035616,11]
[359584703,1746151844676,-151.0,0.00035616,7]
[359584704,1746151844686,-290.354684,0.00035616,7]
[359584705,1746151844696,-450.0,0.00035616,11]
[359584706,1746151844706,-432.90552411,0.00035616,11]
[359584707,1746151844716,-450.0,0.00035616,11]
[359584708,1746151844726,-450.0,0.00035616,11]
[359584709,1746151844736,-450.0,0.00035616,11]
[359584710,1746151844746,-505.69879966,0.00035616,11]
[359584711,1746151844755,-450.0,0.00035616,11]
[359584712,1746151844766,-450.0,0.00035616,11]
[359584713,1746151844775,-474.73630796,0.00035616,11]
[359584714,1746151844785,-450.0,0.00035616,11]
[359584715,1746151844795,-588.59856865,0.00035616,11]
[359584716,1746151844804,-500.0,0.00035616,11]
[359584717,1746151844814,-450.0,0.00035616,11]
[359584718,1746151844823,-500.0,0.00035616,11]
[359584719,1746151844832,-627.03329422,0.00035616,11]
[359584720,1746151844842,-450.0,0.00035616,11]
[359584721,1746151844852,-365.249561,0.00035616,11]
[359584722,1746151844863,-450.0,0.00035616,11]
[359584723,1746151844873,-450.0,0.00035616,11]
[359584724,1746151844884,-500.0,0.00035616,11]
[359584725,1746151844894,-500.0,0.00035616,11]
[359584726,1746151844903,-500.0,0.00035616,11]
[359584727,1746151844913,-500.0,0.00035616,11]
[359584728,1746151844923,-526.95490804,0.00035616,11]
[359584729,1746151844933,-522.07140595,0.00035616,11]
[359584730,1746151844943,-476.4633383,0.00035616,11]
[359584731,1746151844952,-450.0,0.00035616,11]
[359584732,1746151844962,-452.41,0.00035616,11]
[359584733,1746151844971,-493.94,0.00035616,11]
[359584734,1746151844981,-450.0,0.00035616,11]
[359584735,1746151844993,-151.0,0.00035616,7]
[359584736,1746151845003,-475.92393356,0.00035616,11]
[359584737,1746151845014,-151.0,0.00035616,7]
[359584738,1746151845025,-1052.37,0.00035616,11]
[359584739,1746151845035,-537.91155507,0.00035616,11]
[359584740,1746151845045,-568.33862263,0.00035616,11]
[359584741,1746151845055,-484.82103318,0.00035616,11]
[359584742,1746151845065,-471.05231591,0.00035616,11]
[359584743,1746151845075,-450.0,0.00035616,11]
[359584744,1746151845084,-470.0,0.00035616,11]
[359584745,1746151845094,-450.0,0.00035616,11]
[359584746,1746151845104,-450.0,0.00035616,11]
[359584747,1746151845114,-450.0,0.00035616,11]
[359584748,1746151845124,-613.96,0.00035616,11]
[359584749,1746151845133,-450.0,0.00035616,11]
[359584750,1746151845143,-478.66110505,0.00035616,11]
[359584751,1746151845153,-1486.03,0.00035616,11]
[359584752,1746151845162,-1059.06,0.00035616,11]
[359584753,1746151845172,-526.44810028,0.00035616,11]
[359584754,1746151845182,-500.0,0.00035616,11]
[359584755,1746151845193,-500.0,0.00035616,11]
[359584756,1746151845204,-450.0,0.00035616,11]
[359584757,1746151845218,-500.0,0.00035616,11]
[359584758,1746151845229,-500.0,0.00035616,11]
[359584759,1746151845239,-530.70042877,0.00035616,11]
[359584760,1746151845249,-523.20208212,0.00035616,11]
[359584761,1746151845260,-479.20352983,0.00035616,11]
[359584762,1746151845270,-552.30096776,0.00035616,11]
[359584763,1746151845282,-450.0,0.00035616,11]
[359584764,1746151845292,-482.04692344,0.00035616,11]
[359584765,1746151845302,-473.97622075,0.00035616,11]
[359584766,1746151845312,-151.0,0.00035616,7]
[359584767,1746151845322,-564.89707459,0.00035616,11]
[359584768,1746151845332,-151.0,0.00035616,7]
[359584769,1746151845342,-484.7,0.00035616,11]
[359584770,1746151845352,-510.92426429,0.00035616,11]
[359584771,1746151845363,-151.0,0.00035616,7]
[359584772,1746151845374,-181.750331,0.00035616,7]
[359584773,1746151845385,-475.68788128,0.00035616,11]
[359584774,1746151845395,-450.0,0.00035616,11]
[359584775,1746151845405,-181.750331,0.00035616,7]
[359584776,1746151845415,-223.861338,0.00035616,7]
[359584777,1746151845425,-223.861338,0.00035616,7]
[359584778,1746151845435,-450.0,0.00035616,11]
[359584779,1746151845446,-154.020493,0.00035616,7]
[359584780,1746151845455,-528.78,0.00035616,11]
[359584781,1746151845466,-486.94,0.00035616,11]
[359584782,1746151845476,-527.18318092,0.00035616,11]
[359584783,1746151845487,-471.7155258,0.00035616,11]
[359584784,1746151845497,-541.4492389,0.00035616,11]
[359584785,1746151845507,-477.69010555,0.00035616,11]
[359584786,1746151845518,-450.0,0.00035616,11]
[359584787,1746151845528,-450.0,0.00035616,11]
[359584788,1746151845539,-450.0,0.00035616,11]
[359584789,1746151845549,-450.0,0.00035616,11]
[359584790,1746151845559,-472.69502675,0.00035616,11]
[359584791,1746151845569,-621.58,0.00035616,11]
[359584792,1746151845579,-450.0,0.00035616,11]
[359584793,1746151845589,-450.0,0.00035616,11]
[359584794,1746151845601,-478.6696197,0.00035616,11]
[359584795,1746151845613,-483.37074986,0.00035616,11]
[359584796,1746151845624,-483.56461967,0.00035616,11]
[359584797,1746151845635,-385.80336,0.00035616,7]
[359584798,1746151845645,-450.0,0.00035616,11]
[359584799,1746151845655,-151.456468,0.00035616,7]
[359584800,1746151845665,-385.80336,0.00035616,7]
[359584801,1746151845675,-638.97,0.00035616,11]
[359584802,1746151845685,-516.32663185,0.00035616,11]
[359584803,1746151845694,-472.54374558,0.00035616,11]
[359584804,1746151845704,-450.0,0.00035616,11]
[359584805,1746151845714,-483.42226741,0.00035616,11]
[359584806,1746151845724,-450.0,0.00035616,11]
[359584807,1746151845734,-450.0,0.00035616,11]
[359584808,1746151845744,-240.93019251,0.00035616,11]
[359584809,1746151845755,-450.0,0.00035616,11]
[359584810,1746151845765,-479.60042015,0.00035616,11]
[359584811,1746151845775,-935.81,0.00035616,11]
[359584812,1746151845784,-450.0,0.00035616,11]
[359584813,1746151845888,-450.0,0.00035616,11]
[359584814,1746151845898,-479.01773472,0.00035616,11]
[359584815,1746151845907,-450.0,0.00035616,11]
[359584816,1746151845916,-675.63,0.00035616,11]
[359584817,1746151845926,-475.04609516,0.00035616,11]
[359584818,1746151845935,-151.0,0.00035616,7]
[359584819,1746151845945,-525.39989279,0.00035616,11]
[359584820,1746151845954,-477.03531808,0.00035616,11]
[359584821,1746151845964,-450.0,0.00035616,11]
[359584822,1746151845973,-512.49471322,0.00035616,11]
[359584823,1746151845982,-475.07523351,0.00035616,11]
[359584824,1746151845991,-450.0,0.00035616,11]
[359584825,1746151846001,-483.53289868,0.00035616,11]
[359584826,1746151846010,-541.5,0.00035616,11]
[359584827,1746151846019,-479.10774645,0.00035616,11]
[359584828,1746151846029,-450.0,0.00035616,11]
[359584829,1746151846038,-479.21627206,0.00035616,11]
[359584830,1746151846047,-542.58258373,0.00035616,11]
[359584831,1746151846056,-450.0,0.00035616,11]
[359584832,1746151846066,-581.73,0.00035616,11]
[359584833,1746151846075,-546.31801328,0.00035616,11]
[359584834,1746151846085,-450.0,0.00035616,11]
[359584835,1746151846095,-479.20537631,0.00035616,11]
[359584836,1746151846106,-1061.94,0.00035616,11]
[359584837,1746151846116,-450.0,0.00035616,11]
[359584838,1746151846126,-513.07,0.00035616,11]
[359584839,1746151846136,-473.29,0.00035616,11]
[359584840,1746151846145,-481.31192135,0.00035616,11]
[359584841,1746151846155,-502.67311899,0.00035616,11]
[359584842,1746151846165,-450.0,0.00035616,11]
[359584843,1746151846174,-474.36454793,0.00035616,11]
[359584844,1746151846184,-485.97,0.00035616,11]
[359584845,1746151846194,-470.6803191,0.00035616,7]
[359584846,1746151846207,-984.95,0.00035616,2]
[359584847,1746151846217,-477.30005923,0.00035616,11]
[359584848,1746151846227,-472.09187966,0.00035616,11]
[359584849,1746151846237,-581.17319964,0.00035616,11]
[359584850,1746151846248,-450.0,0.00035616,11]
[359584851,1746151846259,-482.99792283,0.00035616,11]
[359584852,1746151846270,-617.62,0.00035616,11]
[359584853,1746151846280,-579.79514215,0.00035616,11]
[359584854,1746151846290,-450.0,0.00035616,11]
[359584855,1746151846300,-450.0,0.00035616,11]
[359584856,1746151846311,-450.0,0.00035616,11]
[359584857,1746151846321,-533.56,0.00035616,11]
[359584858,1746151846331,-450.0,0.00035616,11]
[359584859,1746151846342,-2055.2,0.00035616,11]
[359584860,1746151846352,-450.0,0.00035616,11]
[359584861,1746151846362,-450.0,0.00035616,11]
[359584862,1746151846372,-481.68611999,0.00035616,11]
[359584863,1746151846382,-450.0,0.00035616,11]
[359584864,1746151846391,-175.58674573,0.00035616,11]
[359584865,1746151846401,-450.0,0.00035616,11]
[359584866,1746151846410,-404.62562024,0.00035616,11]
[359584867,1746151846419,-478.33957761,0.00035616,11]
[359584868,1746151846430,-450.0,0.00035616,11]
[359584869,1746151846439,-474.27963675,0.00035616,11]
[359584870,1746151846450,-544.2093823,0.00035616,11]